[Event "GER-ch Youth-U12 2024"]
[Site "Willingen"]
[Date "2024.05.24"]
[Round "8"]
[White "Meijers, Janis"]
[Black "Jahn, Gustav"]
[Result "1/2-1/2"]
[ECO "E38"]
[WhiteElo "1787"]
[BlackElo "1755"]
[Annotator "NA RC"]
[PlyCount "150"]
[EventDate "2022.06.05"]
[EventType "swiss"]
[EventRounds "9"]
[EventCountry "GER"]
[SourceTitle "playchess.com"]
[Source "ChessBase"]
[SourceQuality "1"]
[TimeControl "40/4500+30:900+30"]

1. d4 {[%emt 0:00:00]} Nf6 {[%emt 0:00:00]} 2. c4 {[%emt 0:00:00]} e6 {[%emt 0:00:00]} 3. Nc3 {[%emt 0:00:00]} Bb4 {[%emt 0:00:00]} 4. Qc2 {[%emt 0:00:00]} c5 {[%emt 0:00:00]} 5. dxc5 {[%emt 0:00:00]} Bxc5 {[%emt 0:00:00]} 6. Nf3 {[%emt 0:00:00]} Qb6 {[%emt 0:00:00]} 7. e3 {[%emt 0:00:00]} Qc7 {[%emt 0:00:00]} 8. Bd3 {[%emt 0:00:00]} a6 {[%emt 0:00:00]} 9. O-O {[%emt 0:00:00]} Nc6 {[%emt 0:00:00]} 10. a3 {[%emt 0:00:00]} b6 {[%emt 0:00:00]} 11. b4 {[%emt 0:00:00]} Be7 {[%emt 0:00:00]} 12. Bb2 {[%emt 0:00:00]} O-O {[%emt 0:00:00]} 13. Ne4 {[%emt 0:00:00]} Nxe4 {[%emt 0:00:00]} 14. Bxe4 {[%emt 0:00:00]} f5 {[%emt 0:00:00]} 15. Bd3 {[%emt 0:00:00]} Bf6 {[%emt 0:00:00]} 16. Bxf6 {[%emt 0:02:39]} Rxf6 {[%emt 0:00:00]} 17. Qc3 {[%emt 0:06:43]} Bb7 {[%emt 0:06:11]} 18. Rfc1 {[%emt 0:05:15]} Rg6 {[%emt 0:00:00]} 19. Be2 {[%emt 0:08:40]} Rf8 {[%emt 0:00:00]} 20. b5 {[%emt 0:03:22]} Ne7 {[%emt 0:02:23]} 21. Qb4 {[%emt 0:05:31]} Nc8 {[%emt 0:05:45]} 22. c5 {[%emt 0:02:53]} axb5 {[%emt 0:03:01]} 23. Qxb5 {[%emt 0:03:04]} Bc6 {[%emt 0:02:42]} 24. cxb6 {[%emt 0:06:29]} Nxb6 {[%emt 0:04:13]} 25. Qc5 {[%emt 0:01:10]} f4 {[%emt 0:09:30]} 26. Bd3 {[%emt 0:03:46]} Rh6 {[%emt 0:05:52]} 27. e4 {[%emt 0:02:55]} Na4 {[%emt 0:05:20]} 28. Qb4 {[%emt 0:02:02]} Nb6 {[%emt 0:12:55]} 29. Rab1 {[%emt 0:01:52]} Nc8 {[%emt 0:00:56]} 30. Qc5 {[%emt 0:04:13]} Qd6 {[%emt 0:00:51]} 31. Qc3 {[%emt 0:06:02]} Qe7 {[%emt 0:02:00]} 32. Rb8 {[%emt 0:01:41]} Nd6 {[%emt 0:05:27]} 33. Qb4 {[%emt 0:01:33]} Rxb8 {[%emt 0:01:43]} 34. Qxb8+ {[%emt 0:00:06]} Qf8 {[%emt 0:00:27]} 35. Qc7 {[%emt 0:01:09]} Ne8 {[%emt 0:07:41]} 36. Qb8 {[%emt 0:05:00]} Nd6 {[%emt 0:04:35]} 37. Qb4 {[%emt 0:01:49]} Rh5 {[%emt 0:02:28]} 38. Rb1 {[%emt 0:10:59]} Nb7 {[%emt 0:01:43]} 39. Qc3 {[%emt 0:01:50]} Qc5 {[%emt 0:03:09]} 40. Qb4 {[%emt 0:02:14]} Qxb4 {[%emt 0:01:59]} 41. axb4 {[%emt 0:15:07]} Nd6 {[%emt 0:16:04]} 42. e5 {[%emt 0:00:00]} Nb5 {[%emt 0:00:00]} 43. Bxb5 {[%emt 0:00:00]} Bxb5 {[%emt 0:00:00]} 44. Rc1 {[%emt 0:00:00]} Bc6 {[%emt 0:00:00]} 45. Rc5 {[%emt 0:00:00]} Rf5 {[%emt 0:00:00]} 46. b5 {[%emt 0:00:00]} Bxf3 {[%emt 0:00:00]} 47. gxf3 {[%emt 0:00:00]} Rf8 {[%emt 0:00:00]} 48. Kg2 {[%emt 0:00:00]} Rb8 {[%emt 0:00:00]} 49. Kh3 {[%emt 0:00:00]} Ra8 {[%emt 0:00:00]} 50. Kg4 {[%emt 0:00:00]} Ra4 {[%emt 0:00:00]} 51. Rc8+ {[%emt 0:00:00]} Kf7 {[%emt 0:00:00]} 52. b6 {[%emt 0:00:00]} Rb4 {[%emt 0:00:00]} 53. Rc7 {[%emt 0:00:00]} Rxb6 {[%emt 0:00:00]} 54. Rxd7+ {[%emt 0:00:00]} Kg6 {[%emt 0:00:00]} 55. h4 {[%emt 0:01:39]} h5+ {[%emt 0:01:58]} 56. Kxf4 {[%emt 0:00:06]} Rb4+ {[%emt 0:01:26]} 57. Kg3 {[%emt 0:00:11]} Rb5 {[%emt 0:00:57]} 58. f4 {[%emt 0:00:35]} Rb3+ {[%emt 0:00:27]} 59. f3 {[%emt 0:00:20]} Rb6 {[%emt 0:00:28]} 60. Rd6 {[%emt 0:02:39]} Rxd6 {[%emt 0:00:40]} 61. exd6 {[%emt 0:00:06]} Kf7 {[%emt 0:00:21]} 62. f5 {[%emt 0:00:58]} exf5 {[%emt 0:01:45]} 63. Kf4 {[%emt 0:01:45]} Ke6 {[%emt 0:00:31]} 64. Kg5 {[%emt 0:00:32]} Kxd6 {[%emt 0:00:34]} 65. Kg6 {[%emt 0:01:28]} Ke5 {[%emt 0:00:38]} 66. Kxg7 {[%emt 0:00:19]} Kf4 {[%emt 0:00:44]} 67. Kg6 {[%emt 0:00:08]} Kxf3 {[%emt 0:00:21]} 68. Kxf5 {[%emt 0:03:13]} Ke3 {[%emt 0:00:22]} 69. Ke5 {[%emt 0:00:36]} Kf3 {[%emt 0:00:19]} 70. Kf5 {[%emt 0:00:04]} Ke3 {[%emt 0:00:09]} 71. Kg5 {[%emt 0:00:08]} Ke4 {[%emt 0:00:35]} 72. Kxh5 {[%emt 0:00:22]} Kf5 {[%emt 0:00:10]} 73. Kh6 {[%emt 0:00:18]} Kf6 {[%emt 0:00:21]} 74. Kh7 {[%emt 0:00:06]} Kf7 {[%emt 0:00:27]} 75. h5 {[%emt 0:00:08]} Kf8 {[%emt 0:00:56]} 1/2-1/2

[Event "GER-ch Youth-U12 2024"]
[Site "Willingen"]
[Date "2024.05.24"]
[Round "8"]
[White "Fels, Mattis"]
[Black "Shevchenko, Igor"]
[Result "0-1"]
[ECO "D00"]
[WhiteElo "1759"]
[BlackElo "1758"]
[Annotator "NA RC"]
[PlyCount "86"]
[EventDate "2022.06.05"]
[EventType "swiss"]
[EventRounds "9"]
[EventCountry "GER"]
[SourceTitle "playchess.com"]
[Source "ChessBase"]
[SourceQuality "1"]
[TimeControl "40/4500+30:900+30"]

1. d4 {[%emt 0:00:00]} Nf6 {[%emt 0:00:00]} 2. Nc3 {[%emt 0:00:00]} d5 {[%emt 0:00:00]} 3. Bf4 {[%emt 0:00:00]} a6 {[%emt 0:00:00]} 4. e3 {[%emt 0:00:00]} e6 {[%emt 0:00:00]} 5. g4 {[%emt 0:00:00]} c5 {[%emt 0:00:00]} 6. Nf3 {[%emt 0:00:00]} Nc6 {[%emt 0:00:00]} 7. Ne5 {[%emt 0:00:00]} Nxe5 {[%emt 0:00:42]} 8. dxe5 {[%emt 0:00:00]} Nd7 {[%emt 0:00:49]} 9. Qf3 {[%emt 0:00:00]} g5 {[%emt 0:10:07]} 10. Bg3 {[%emt 0:07:45]} Bg7 {[%emt 0:16:40]} 11. O-O-O {[%emt 0:02:17]} Nxe5 {[%emt 0:11:49]} 12. Bxe5 {[%emt 0:01:58]} Bxe5 {[%emt 0:00:45]} 13. Be2 {[%emt 0:20:54]} Bd7 {[%emt 0:05:50]} 14. h4 {[%emt 0:01:52]} Bc6 {[%emt 0:03:42]} 15. Qh3 {[%emt 0:03:04]} Qa5 {[%emt 0:03:35]} 16. hxg5 {[%emt 0:07:03]} d4 {[%emt 0:01:32]} 17. exd4 {[%emt 0:01:24]} cxd4 {[%emt 0:01:04]} 18. Nb1 {[%emt 0:00:33]} Bxh1 {[%emt 0:00:07]} 19. Qxh1 {[%emt 0:00:06]} Bf4+ {[%emt 0:00:42]} 20. Rd2 {[%emt 0:00:52]} Bxd2+ {[%emt 0:00:06]} 21. Nxd2 {[%emt 0:00:08]} O-O-O {[%emt 0:01:16]} 22. Bf3 {[%emt 0:00:18]} Qc7 {[%emt 0:00:58]} 23. Ne4 {[%emt 0:00:50]} d3 {[%emt 0:00:36]} 24. c3 {[%emt 0:00:12]} d2+ {[%emt 0:04:15]} 25. Kd1 {[%emt 0:00:20]} Qc4 {[%emt 0:01:43]} 26. Kc2 {[%emt 0:04:15]} Qd3+ {[%emt 0:01:24]} 27. Kb3 {[%emt 0:00:07]} d1=Q+ {[%emt 0:00:09]} 28. Bxd1 {[%emt 0:00:04]} Qxd1+ {[%emt 0:00:09]} 29. Qxd1 {[%emt 0:00:02]} Rxd1 {[%emt 0:00:09]} 30. Nd6+ {[%emt 0:00:06]} Rxd6 {[%emt 0:00:07]} 31. g6 {[%emt 0:00:02]} hxg6 {[%emt 0:00:13]} 32. g5 {[%emt 0:00:06]} b5 {[%emt 0:00:21]} 33. f4 {[%emt 0:00:06]} Kc7 {[%emt 0:00:11]} 34. f5 {[%emt 0:00:04]} exf5 {[%emt 0:00:04]} 35. c4 {[%emt 0:00:09]} Rh3+ {[%emt 0:00:07]} 36. Kb4 {[%emt 0:00:06]} Rh4 {[%emt 0:00:20]} 37. a4 {[%emt 0:00:13]} Rxc4+ {[%emt 0:00:04]} 38. Kb3 {[%emt 0:00:12]} Rd3+ {[%emt 0:00:06]} 39. Ka2 {[%emt 0:00:05]} Rxa4+ {[%emt 0:00:15]} 40. Kb1 {[%emt 0:00:06]} Rd2 {[%emt 0:00:03]} 41. b3 {[%emt 0:15:10]} Rh4 {[%emt 0:15:05]} 42. Kc1 {[%emt 0:00:04]} Rg2 {[%emt 0:00:03]} 43. b4 {[%emt 0:00:05]} Rh1# {[%emt 0:00:04]} 0-1

[Event "GER-ch Youth-U12 2024"]
[Site "Willingen"]
[Date "2024.05.24"]
[Round "8"]
[White "Wettstein, Levin"]
[Black "Fadeev, Justin Michael"]
[Result "1/2-1/2"]
[ECO "C01"]
[WhiteElo "1753"]
[BlackElo "1762"]
[Annotator "NA RC"]
[PlyCount "117"]
[EventDate "2022.06.05"]
[EventType "swiss"]
[EventRounds "9"]
[EventCountry "GER"]
[SourceTitle "playchess.com"]
[Source "ChessBase"]
[SourceQuality "1"]
[TimeControl "40/4500+30:900+30"]

1. e4 {[%emt 0:00:00]} e6 {[%emt 0:00:00]} 2. d4 {[%emt 0:00:00]} d5 {[%emt 0:00:00]} 3. exd5 {[%emt 0:00:00]} exd5 {[%emt 0:00:00]} 4. Nf3 {[%emt 0:00:00]} Bd6 {[%emt 0:00:00]} 5. Bd3 {[%emt 0:00:00]} Ne7 {[%emt 0:00:00]} 6. Bg5 {[%emt 0:00:00]} f6 {[%emt 0:00:00]} 7. Bh4 {[%emt 0:00:00]} O-O {[%emt 0:00:00]} 8. O-O {[%emt 0:00:00]} Bf5 {[%emt 0:00:00]} 9. c3 {[%emt 0:00:00]} c6 {[%emt 0:00:00]} 10. Qe2 {[%emt 0:00:00]} Qd7 {[%emt 0:00:00]} 11. Qc2 {[%emt 0:00:00]} Na6 {[%emt 0:01:21]} 12. Re1 {[%emt 0:00:00]} Rae8 {[%emt 0:03:24]} 13. Nbd2 {[%emt 0:01:05]} Bxd3 {[%emt 0:02:28]} 14. Qxd3 {[%emt 0:00:27]} Nf5 {[%emt 0:00:48]} 15. Bg3 {[%emt 0:03:50]} Nc7 {[%emt 0:06:47]} 16. Bxd6 {[%emt 0:01:18]} Nxd6 {[%emt 0:00:11]} 17. h3 {[%emt 0:09:24]} Ne6 {[%emt 0:03:16]} 18. Nh2 {[%emt 0:05:08]} Ng5 {[%emt 0:05:31]} 19. Ndf3 {[%emt 0:04:48]} Nge4 {[%emt 0:02:24]} 20. Nd2 {[%emt 0:06:50]} Qf7 {[%emt 0:04:04]} 21. Nhf1 {[%emt 0:04:22]} Qg6 {[%emt 0:07:58]} 22. f3 {[%emt 0:02:30]} Nxd2 {[%emt 0:01:57]} 23. Qxd2 {[%emt 0:01:24]} Nc4 {[%emt 0:05:15]} 24. Qf2 {[%emt 0:02:53]} Qg5 {[%emt 0:12:37]} 25. Re2 {[%emt 0:02:32]} Qf4 {[%emt 0:04:40]} 26. Rae1 {[%emt 0:02:10]} Kf7 {[%emt 0:00:22]} 27. Qg3 {[%emt 0:03:27]} Rxe2 {[%emt 0:02:45]} 28. Rxe2 {[%emt 0:00:41]} Qxg3 {[%emt 0:00:14]} 29. Nxg3 {[%emt 0:00:08]} Re8 {[%emt 0:00:12]} 30. Rxe8 {[%emt 0:04:24]} Kxe8 {[%emt 0:00:05]} 31. b3 {[%emt 0:00:13]} Nd6 {[%emt 0:00:53]} 32. Kf2 {[%emt 0:00:57]} Ke7 {[%emt 0:01:05]} 33. Ke3 {[%emt 0:00:38]} Ke6 {[%emt 0:01:33]} 34. Kf4 {[%emt 0:01:12]} g6 {[%emt 0:05:31]} 35. h4 {[%emt 0:01:56]} b6 {[%emt 0:02:20]} 36. Ne2 {[%emt 0:01:45]} c5 {[%emt 0:03:22]} 37. a4 {[%emt 0:03:11]} Nb7 {[%emt 0:05:17]} 38. b4 {[%emt 0:05:13]} cxb4 {[%emt 0:01:26]} 39. cxb4 {[%emt 0:00:14]} Nd6 {[%emt 0:00:29]} 40. b5 {[%emt 0:01:13]} Nc4 {[%emt 0:02:38]} 41. g3 {[%emt 0:19:22]} h6 {[%emt 0:00:00]} 42. g4 {[%emt 0:00:00]} Nb2 {[%emt 0:00:00]} 43. Nc3 {[%emt 0:00:00]} Nc4 {[%emt 0:00:00]} 44. Kg3 {[%emt 0:00:00]} Nd6 {[%emt 0:01:35]} 45. Kf4 {[%emt 0:00:00]} g5+ {[%emt 0:01:26]} 46. hxg5 {[%emt 0:00:00]} hxg5+ {[%emt 0:00:30]} 47. Kg3 {[%emt 0:00:00]} f5 {[%emt 0:01:28]} 48. Kh3 {[%emt 0:00:00]} f4 {[%emt 0:09:19]} 49. Kg2 {[%emt 0:00:00]} Nc4 {[%emt 0:00:04]} 50. Kf2 {[%emt 0:00:00]} Ne3 {[%emt 0:00:21]} 51. Ke2 {[%emt 0:00:00]} Nc2 {[%emt 0:00:07]} 52. Kd3 {[%emt 0:00:00]} Ne1+ {[%emt 0:00:12]} 53. Ke2 {[%emt 0:00:00]} Ng2 {[%emt 0:00:05]} 54. Kf2 {[%emt 0:00:00]} Ne3 {[%emt 0:00:12]} 55. Ke2 {[%emt 0:00:00]} Nc2 {[%emt 0:00:30]} 56. Kd3 {[%emt 0:00:00]} Ne1+ {[%emt 0:00:16]} 57. Ke2 {[%emt 0:00:00]} Nc2 {[%emt 0:00:04]} 58. Kd3 {[%emt 0:00:00]} Ne1+ {[%emt 0:00:05]} 59. Ke2 {[%emt 0:00:00]} 1/2-1/2

[Event "GER-ch Youth-U12 2024"]
[Site "Willingen"]
[Date "2024.05.24"]
[Round "8"]
[White "Chua, Daniel James"]
[Black "Sun, Christopher"]
[Result "1/2-1/2"]
[ECO "C18"]
[WhiteElo "1751"]
[BlackElo "1714"]
[Annotator "NA RC"]
[PlyCount "68"]
[EventDate "2022.06.05"]
[EventType "swiss"]
[EventRounds "9"]
[EventCountry "GER"]
[SourceTitle "playchess.com"]
[Source "ChessBase"]
[SourceQuality "1"]
[TimeControl "40/4500+30:900+30"]

1. e4 {[%emt 0:00:00]} e6 {[%emt 0:00:00]} 2. d4 {[%emt 0:00:00]} d5 {[%emt 0:00:00]} 3. Nc3 {[%emt 0:00:00]} Bb4 {[%emt 0:00:00]} 4. e5 {[%emt 0:00:00]} c5 {[%emt 0:00:00]} 5. a3 {[%emt 0:00:00]} Bxc3+ {[%emt 0:00:00]} 6. bxc3 {[%emt 0:00:00]} Qa5 {[%emt 0:00:00]} 7. Bd2 {[%emt 0:00:00]} Qa4 {[%emt 0:00:00]} 8. Qg4 {[%emt 0:00:00]} Kf8 {[%emt 0:00:00]} 9. h4 {[%emt 0:00:00]} Qxc2 {[%emt 0:10:07]} 10. Rh3 {[%emt 0:07:34]} Qe4+ {[%emt 0:11:36]} 11. Qxe4 {[%emt 0:00:02]} dxe4 {[%emt 0:00:09]} 12. Re3 {[%emt 0:15:49]} cxd4 {[%emt 0:02:28]} 13. cxd4 {[%emt 0:00:13]} f5 {[%emt 0:07:51]} 14. Bb4+ {[%emt 0:06:34]} Ne7 {[%emt 0:01:08]} 15. Rc1 {[%emt 0:08:53]} Nbc6 {[%emt 0:02:07]} 16. Bd6 {[%emt 0:00:37]} Kf7 {[%emt 0:03:08]} 17. Nh3 {[%emt 0:04:33]} h6 {[%emt 0:02:22]} 18. Rg3 {[%emt 0:02:08]} Nd5 {[%emt 0:04:46]} 19. Be2 {[%emt 0:02:05]} g6 {[%emt 0:01:19]} 20. Bc4 {[%emt 0:00:47]} Nce7 {[%emt 0:15:34]} 21. Bxe7 {[%emt 0:04:26]} Nxe7 {[%emt 0:00:23]} 22. Rb1 {[%emt 0:03:35]} b6 {[%emt 0:01:39]} 23. Nf4 {[%emt 0:01:05]} Bd7 {[%emt 0:02:24]} 24. Ba6 {[%emt 0:01:40]} Bc8 {[%emt 0:06:45]} 25. Bb5 {[%emt 0:01:08]} a6 {[%emt 0:00:38]} 26. Be2 {[%emt 0:00:41]} b5 {[%emt 0:00:51]} 27. Rc1 {[%emt 0:00:19]} Bd7 {[%emt 0:01:26]} 28. Rc7 {[%emt 0:00:14]} Rhd8 {[%emt 0:00:42]} 29. Nxg6 {[%emt 0:04:10]} Nxg6 {[%emt 0:06:50]} 30. Bh5 {[%emt 0:00:07]} Rac8 {[%emt 0:01:39]} 31. Ra7 {[%emt 0:00:33]} Rc1+ {[%emt 0:01:31]} 32. Ke2 {[%emt 0:01:21]} Rdc8 {[%emt 0:01:31]} 33. Rxg6 {[%emt 0:01:17]} R1c2+ {[%emt 0:00:49]} 34. Ke1 {[%emt 0:01:16]} Rc1+ {[%emt 0:00:12]} 1/2-1/2

[Event "GER-ch Youth-U12 2024"]
[Site "Willingen"]
[Date "2024.05.24"]
[Round "8"]
[White "Draude, Theo"]
[Black "Leonhardt, Max"]
[Result "1-0"]
[ECO "C10"]
[WhiteElo "1731"]
[BlackElo "1691"]
[Annotator "NA RC"]
[PlyCount "71"]
[EventDate "2022.06.05"]
[EventType "swiss"]
[EventRounds "9"]
[EventCountry "GER"]
[SourceTitle "playchess.com"]
[Source "ChessBase"]
[SourceQuality "1"]
[TimeControl "40/4500+30:900+30"]

1. e4 {[%emt 0:00:00]} e6 {[%emt 0:00:00]} 2. d4 {[%emt 0:00:00]} d5 {[%emt 0:00:00]} 3. Nd2 {[%emt 0:00:00]} dxe4 {[%emt 0:00:00]} 4. Nxe4 {[%emt 0:00:00]} Nd7 {[%emt 0:00:00]} 5. Bd3 {[%emt 0:00:00]} Ngf6 {[%emt 0:00:00]} 6. Qe2 {[%emt 0:00:00]} Nxe4 {[%emt 0:00:00]} 7. Bxe4 {[%emt 0:00:00]} Bd6 {[%emt 0:00:00]} 8. Nf3 {[%emt 0:00:00]} h6 {[%emt 0:00:00]} 9. Bd2 {[%emt 0:00:00]} O-O {[%emt 0:00:00]} 10. g4 {[%emt 0:00:10]} f5 {[%emt 0:00:00]} 11. gxf5 {[%emt 0:01:03]} exf5 {[%emt 0:00:00]} 12. Bd5+ {[%emt 0:00:56]} Kh8 {[%emt 0:00:00]} 13. O-O-O {[%emt 0:03:31]} Nf6 {[%emt 0:00:00]} 14. Bb3 {[%emt 0:19:21]} Re8 {[%emt 0:00:16]} 15. Ne5 {[%emt 0:08:28]} Kh7 {[%emt 0:06:50]} 16. Qf3 {[%emt 0:13:35]} Ne4 {[%emt 0:08:59]} 17. Qh5 {[%emt 0:13:15]} Bxe5 {[%emt 0:05:06]} 18. dxe5 {[%emt 0:01:31]} Nxd2 {[%emt 0:05:04]} 19. Rxd2 {[%emt 0:00:26]} Qe7 {[%emt 0:00:51]} 20. Rg1 {[%emt 0:05:12]} Rf8 {[%emt 0:08:57]} 21. Qg6+ {[%emt 0:01:34]} Kh8 {[%emt 0:00:06]} 22. f4 {[%emt 0:01:06]} Bd7 {[%emt 0:01:37]} 23. Rdg2 {[%emt 0:01:22]} Rg8 {[%emt 0:02:50]} 24. Bxg8 {[%emt 0:02:13]} Rxg8 {[%emt 0:00:05]} 25. Rg5 {[%emt 0:02:42]} c5 {[%emt 0:02:56]} 26. R1g3 {[%emt 0:01:13]} Qe6 {[%emt 0:02:10]} 27. Qxe6 {[%emt 0:01:12]} Bxe6 {[%emt 0:00:05]} 28. Rg6 {[%emt 0:00:16]} Bf7 {[%emt 0:00:22]} 29. Rd6 {[%emt 0:00:12]} Kh7 {[%emt 0:01:12]} 30. Rd7 {[%emt 0:00:23]} Bh5 {[%emt 0:00:17]} 31. Rxb7 {[%emt 0:00:35]} Kh8 {[%emt 0:00:23]} 32. Rxa7 {[%emt 0:00:21]} Rd8 {[%emt 0:01:09]} 33. Rd3 {[%emt 0:00:06]} Re8 {[%emt 0:00:48]} 34. Kd2 {[%emt 0:00:23]} g5 {[%emt 0:00:13]} 35. fxg5 {[%emt 0:00:14]} hxg5 {[%emt 0:00:16]} 36. Rh3 {[%emt 0:00:14]} 1-0

[Event "GER-ch Youth-U12 2024"]
[Site "Willingen"]
[Date "2024.05.24"]
[Round "8"]
[White "Gersemann, Karl"]
[Black "Hagn, Tobias"]
[Result "1-0"]
[ECO "C89"]
[WhiteElo "1729"]
[BlackElo "1631"]
[Annotator "NA RC"]
[PlyCount "111"]
[EventDate "2022.06.05"]
[EventType "swiss"]
[EventRounds "9"]
[EventCountry "GER"]
[SourceTitle "playchess.com"]
[Source "ChessBase"]
[SourceQuality "1"]
[TimeControl "40/4500+30:900+30"]

1. e4 {[%emt 0:00:00]} e5 {[%emt 0:00:00]} 2. Nf3 {[%emt 0:00:00]} Nc6 {[%emt 0:00:00]} 3. Bb5 {[%emt 0:00:00]} a6 {[%emt 0:00:00]} 4. Ba4 {[%emt 0:00:00]} Nf6 {[%emt 0:00:00]} 5. O-O {[%emt 0:00:00]} Be7 {[%emt 0:00:00]} 6. Re1 {[%emt 0:00:00]} b5 {[%emt 0:00:00]} 7. Bb3 {[%emt 0:00:00]} O-O {[%emt 0:00:00]} 8. c3 {[%emt 0:00:00]} d5 {[%emt 0:00:00]} 9. exd5 {[%emt 0:00:00]} Nxd5 {[%emt 0:00:00]} 10. Nxe5 {[%emt 0:00:00]} Nxe5 {[%emt 0:00:00]} 11. Rxe5 {[%emt 0:00:00]} c6 {[%emt 0:00:00]} 12. Bxd5 {[%emt 0:00:00]} cxd5 {[%emt 0:00:00]} 13. d4 {[%emt 0:00:00]} Bd6 {[%emt 0:00:00]} 14. Re1 {[%emt 0:00:00]} Qh4 {[%emt 0:00:00]} 15. g3 {[%emt 0:00:00]} Qh3 {[%emt 0:00:00]} 16. Qf3 {[%emt 0:00:00]} Bf5 {[%emt 0:00:00]} 17. Qg2 {[%emt 0:05:20]} Qh5 {[%emt 0:00:33]} 18. f3 {[%emt 0:10:38]} Rae8 {[%emt 0:13:07]} 19. Be3 {[%emt 0:01:17]} Bh3 {[%emt 0:10:33]} 20. Qf2 {[%emt 0:02:09]} f5 {[%emt 0:02:13]} 21. f4 {[%emt 0:01:01]} Re6 {[%emt 0:13:01]} 22. Nd2 {[%emt 0:09:08]} Rh6 {[%emt 0:07:37]} 23. Nf3 {[%emt 0:06:28]} Bg4 {[%emt 0:05:39]} 24. Ne5 {[%emt 0:14:13]} Rff6 {[%emt 0:05:41]} 25. Qg2 {[%emt 0:07:14]} Re6 {[%emt 0:04:26]} 26. Nxg4 {[%emt 0:03:06]} fxg4 {[%emt 0:00:32]} 27. f5 {[%emt 0:00:59]} Qxf5 {[%emt 0:05:18]} 28. Bxh6 {[%emt 0:00:10]} gxh6 {[%emt 0:00:45]} 29. Rxe6 {[%emt 0:01:33]} Qxe6 {[%emt 0:00:29]} 30. Qf2 {[%emt 0:00:47]} Kg7 {[%emt 0:04:59]} 31. Re1 {[%emt 0:00:18]} Qg6 {[%emt 0:00:16]} 32. Qe2 {[%emt 0:01:45]} Kf7 {[%emt 0:03:32]} 33. Qe8+ {[%emt 0:00:18]} Kg7 {[%emt 0:00:20]} 34. Qd7+ {[%emt 0:01:48]} Kg8 {[%emt 0:01:28]} 35. Re8+ {[%emt 0:00:14]} Bf8 {[%emt 0:00:12]} 36. Qxd5+ {[%emt 0:00:30]} Kg7 {[%emt 0:00:51]} 37. Qd7+ {[%emt 0:00:29]} Kg8 {[%emt 0:00:22]} 38. Qe6+ {[%emt 0:01:08]} Qxe6 {[%emt 0:01:42]} 39. Rxe6 {[%emt 0:00:08]} a5 {[%emt 0:00:29]} 40. Ra6 {[%emt 0:00:07]} a4 {[%emt 0:01:07]} 41. Ra5 {[%emt 0:15:39]} a3 {[%emt 0:17:33]} 42. bxa3 {[%emt 0:00:30]} Kf7 {[%emt 0:01:49]} 43. Rxb5 {[%emt 0:00:11]} Bxa3 {[%emt 0:00:31]} 44. Rb3 {[%emt 0:00:09]} Bc1 {[%emt 0:00:39]} 45. a4 {[%emt 0:00:21]} Ke6 {[%emt 0:01:35]} 46. a5 {[%emt 0:00:09]} Kd5 {[%emt 0:00:53]} 47. a6 {[%emt 0:00:11]} Kc4 {[%emt 0:01:09]} 48. Rb1 {[%emt 0:00:46]} Be3+ {[%emt 0:00:51]} 49. Kg2 {[%emt 0:00:08]} Kxc3 {[%emt 0:00:32]} 50. a7 {[%emt 0:00:11]} Bxd4 {[%emt 0:00:23]} 51. a8=Q {[%emt 0:00:14]} Kc2 {[%emt 0:00:54]} 52. Qa2+ {[%emt 0:00:04]} Kd3 {[%emt 0:00:36]} 53. Rd1+ {[%emt 0:00:20]} Ke4 {[%emt 0:00:52]} 54. Qe6+ {[%emt 0:00:11]} Be5 {[%emt 0:00:12]} 55. Qxg4+ {[%emt 0:00:22]} Ke3 {[%emt 0:00:25]} 56. Qf3# {[%emt 0:00:36]} 1-0

[Event "GER-ch Youth-U12 2024"]
[Site "Willingen"]
[Date "2024.05.24"]
[Round "8"]
[White "Hepp, Daniel"]
[Black "Yozgyur, Ediz"]
[Result "1/2-1/2"]
[ECO "E41"]
[WhiteElo "1721"]
[BlackElo "1789"]
[Annotator "NA RC"]
[PlyCount "57"]
[EventDate "2022.06.05"]
[EventType "swiss"]
[EventRounds "9"]
[EventCountry "GER"]
[SourceTitle "playchess.com"]
[Source "ChessBase"]
[SourceQuality "1"]
[TimeControl "40/4500+30:900+30"]

1. c4 {[%emt 0:00:00]} e6 {[%emt 0:00:00]} 2. Nc3 {[%emt 0:00:00]} Nf6 {[%emt 0:00:00]} 3. d4 {[%emt 0:00:00]} Bb4 {[%emt 0:00:00]} 4. Nf3 {[%emt 0:00:00]} c5 {[%emt 0:00:00]} 5. e3 {[%emt 0:00:00]} d5 {[%emt 0:00:00]} 6. Bd2 {[%emt 0:00:00]} Nc6 {[%emt 0:00:00]} 7. cxd5 {[%emt 0:00:00]} exd5 {[%emt 0:00:19]} 8. a3 {[%emt 0:07:00]} Bxc3 {[%emt 0:02:35]} 9. Bxc3 {[%emt 0:00:37]} c4 {[%emt 0:03:10]} 10. Nd2 {[%emt 0:08:05]} O-O {[%emt 0:01:48]} 11. a4 {[%emt 0:05:33]} a5 {[%emt 0:03:21]} 12. b3 {[%emt 0:01:49]} Bg4 {[%emt 0:03:07]} 13. Be2 {[%emt 0:08:20]} Bxe2 {[%emt 0:00:42]} 14. Qxe2 {[%emt 0:00:47]} cxb3 {[%emt 0:01:31]} 15. Nxb3 {[%emt 0:01:28]} Ne4 {[%emt 0:00:07]} 16. Rc1 {[%emt 0:03:22]} Rc8 {[%emt 0:06:35]} 17. Bd2 {[%emt 0:04:08]} Re8 {[%emt 0:03:02]} 18. O-O {[%emt 0:02:23]} Re6 {[%emt 0:11:24]} 19. Bxa5 {[%emt 0:07:35]} Nxa5 {[%emt 0:04:44]} 20. Rxc8 {[%emt 0:01:24]} Qxc8 {[%emt 0:00:06]} 21. Nxa5 {[%emt 0:00:43]} Rh6 {[%emt 0:00:39]} 22. Qb5 {[%emt 0:04:45]} b6 {[%emt 0:07:03]} 23. Nb3 {[%emt 0:03:21]} Qd8 {[%emt 0:03:35]} 24. Qe2 {[%emt 0:07:38]} Qh4 {[%emt 0:01:39]} 25. h3 {[%emt 0:01:40]} Rg6 {[%emt 0:00:45]} 26. f3 {[%emt 0:06:14]} Ng3 {[%emt 0:01:57]} 27. Qf2 {[%emt 0:01:03]} Qe7 {[%emt 0:02:26]} 28. Rc1 {[%emt 0:00:59]} h6 {[%emt 0:02:54]} 29. Nd2 {[%emt 0:03:03]} 1/2-1/2